bitfinex-derivatives/quotes_ETHF0:USTF0_20251001
["timestamp","ask_amount","ask_price","bid_price","bid_amount"]
[1759286309928,1.19465,4167.9,4167.8,0.3303]
[1759286310423,1.19469,4167.6,4167.5,0.2141]
[1759286310628,0.7629,4167.4,4167.3,0.87011]
[1759286310930,0.7629,4167.4,4167.3,1.20041]
[1759286311926,40.8,4168.2,4167.3,1.20041]
[1759286311927,0.65293,4168.1,4168.0,0.8969]
[1759286312235,0.43173,4168.1,4168.0,1.75703065]
[1759286312535,0.7629,4168.5,4168.4,0.7686]
[1759286312731,0.87339,4168.5,4168.4,0.7686]
[1759286313127,1.19459,4168.5,4168.4,0.7686]
[1759286318539,1.32859,4168.5,4168.4,0.5444]
[1759286318935,1.19463,4168.1,4168.0,0.99834]
[1759286319328,1.19463,4168.1,4168.0,1.32864]
[1759286319743,1.19463,4168.1,4168.0,0.8969]
[1759286320541,1.19463,4168.1,4168.0,1.32864]
[1759286323145,1.19463,4168.1,4168.0,0.8969]
[1759286324734,1.19463,4168.1,4168.0,0.5444]
[1759286325740,1.19463,4168.1,4168.0,0.7686]
[1759286326936,0.43176,4167.8,4167.7,1.29190065]
[1759286327137,0.43175,4168.0,4167.9,0.43175]
[1759286327332,0.241,4168.1,4168.0,0.43174]
[1759286327537,0.67273,4168.2,4168.1,1.20033]
[1759286327944,0.89393,4168.2,4168.1,1.20033]
[1759286328837,1.21513,4168.2,4168.1,1.20033]
[1759286329038,1.43563,4168.2,4168.1,0.7686]
[1759286336444,1.19463,4168.2,4168.1,0.7686]
[1759286336644,1.43563,4168.2,4168.1,0.7686]
[1759286337545,0.88054,4168.0,4167.9,1.41753065]
[1759286337743,1.21384,4168.0,4167.9,1.41753065]
[1759286337948,1.21384,4168.0,4167.9,1.62423065]
[1759286338847,1.21384,4168.0,4167.9,0.7641]
[1759286343052,1.21384,4168.0,4167.9,1.19586]
[1759286343551,0.88054,4168.0,4167.9,1.19586]
[1759286343753,0.65594,4168.0,4167.9,2.05599065]
[1759286345043,0.43174,4168.0,4167.9,2.05599065]
[1759286347446,0.65594,4168.0,4167.9,2.05599065]
[1759286349050,0.43174,4168.0,4167.9,2.05599065]
[1759286350856,1.21384,4168.0,4167.9,1.62423065]
[1759286351152,1.21384,4168.0,4167.9,0.7641]
[1759286352146,1.21384,4168.0,4167.9,1.19585]
[1759286352643,0.9129,4168.0,4167.6,1.50502092]
[1759286352952,0.98928,4167.7,4167.6,2.36711092]
[1759286353348,0.3333,4168.0,4167.9,0.43175]
[1759286353548,0.5575,4168.3,4168.2,0.4303]
[1759286353748,0.7821,4168.3,4168.2,0.7641]
[1759286355351,1.21381,4168.3,4168.2,0.7641]
[1759286357858,1.45481,4168.3,4168.2,0.7641]
[1759286362659,1.45481,4168.3,4168.2,1.19582]
[1759286363156,1.45481,4168.3,4168.2,0.7641]
[1759286363557,1.45481,4168.3,4168.2,1.19582]
[1759286366563,1.45481,4168.3,4168.2,0.7641]
[1759286367256,1.45481,4168.3,4168.2,0.5574]
[1759286367762,0.65225,4167.9,4167.8,0.88466]
[1759286367962,0.97805,4167.9,4167.8,0.88466]
[1759286368262,0.7538,4167.9,4167.8,1.20316]
[1759286368762,1.18555,4167.9,4167.8,1.20316]
[1759286369557,1.18555,4167.9,4167.8,0.97557]
[1759286369958,1.18555,4167.9,4167.8,1.20317]
[1759286370357,0.2205,4167.9,4167.8,1.20317]
[1759286370560,0.65225,4167.9,4167.8,1.20317]
[1759286371461,0.2205,4167.9,4167.8,1.20317]
[1759286371661,0.65225,4167.9,4167.8,1.20317]
[1759286373461,0.65225,4167.9,4167.6,0.64799841]
[1759286373462,1.18558,4167.7,4167.6,0.64799841]
[1759286373764,0.97805,4168.0,4167.9,0.4529]
[1759286373957,0.97805,4168.0,4167.9,0.88465]
[1759286374266,1.18555,4168.0,4167.9,0.7714]
[1759286374473,1.30965,4168.0,4167.9,0.3185]
[1759286376560,1.18557,4167.8,4167.7,0.5438]
[1759286377165,1.42657,4167.8,4167.7,0.5438]
[1759286378265,0.9948,4167.8,4167.7,0.97558]
[1759286378464,0.5463,4168.1,4168.0,0.9077]
[1759286378662,0.5463,4168.1,4168.0,1.33944]
[1759286378663,0.2205,4168.1,4168.0,1.33944]
[1759286378969,0.65223,4168.1,4168.0,1.33944]
[1759286379470,0.2205,4168.1,4168.0,1.33944]
[1759286379969,0.65223,4168.1,4168.0,1.33944]
[1759286381764,0.97801,4168.3,4168.2,0.43172]
[1759286381969,0.43171,4168.3,4168.2,1.20312]
[1759286382369,0.65221,4168.3,4168.2,1.20312]
[1759286382568,0.97801,4168.3,4168.2,1.20312]
[1759286384368,1.21901,4168.3,4168.2,1.20312]
[1759286387876,0.97801,4168.3,4168.2,1.20312]
[1759286388067,0.5463,4168.3,4168.2,1.20312]
[1759286389072,0.97801,4168.3,4168.2,1.20312]
[1759286389273,0.5463,4168.3,4168.2,1.20312]
[1759286389870,0.65221,4168.3,4168.2,1.20312]
[1759286390369,0.97801,4168.3,4168.2,1.20312]
[1759286393670,1.18551,4168.3,4168.2,1.20312]
[1759286393875,1.18551,4168.3,4168.2,0.7714]
[1759286394176,1.18551,4168.3,4168.2,1.20312]
[1759286394472,0.43171,4168.3,4168.2,1.20312]
[1759286394678,0.96311,4168.3,4168.2,1.20312]
[1759286395379,1.17811,4168.3,4168.2,1.20312]
[1759286396275,1.17811,4168.3,4168.2,0.7714]
[1759286397078,1.17811,4168.3,4168.2,1.20312]
[1759286397273,1.17811,4168.3,4168.2,0.7714]
[1759286397480,1.17815,4168.0,4167.9,0.5508]
[1759286398376,1.17815,4168.0,4167.9,0.98255]
[1759286398880,1.17815,4168.0,4167.9,0.5508]
[1759286400481,0.7464,4167.7,4167.6,0.5508]
[1759286400683,0.7464,4167.7,4167.6,0.98259]
[1759286400884,0.7464,4167.7,4167.6,1.20059]
[1759286401184,1.17817,4167.7,4167.6,1.20059]
[1759286401579,0.241,4167.9,4167.5,0.64799841]
[1759286401580,0.85989,4167.6,4167.5,0.64799841]
[1759286401780,0.7464,4167.4,4167.3,0.75561]
[1759286401984,0.7464,4167.4,4167.3,0.98261]
[1759286402586,0.7464,4167.4,4167.3,1.20061]
[1759286402785,0.7464,4167.4,4167.3,0.7688]
[1759286403782,0.43182,4167.3,4167.1,0.64799841]
[1759286403987,0.7464,4167.1,4167.0,0.5508]
[1759286404786,1.17824,4167.1,4167.0,0.5508]
[1759286405593,1.17824,4167.1,4167.0,0.7688]
[1759286405984,1.17828,4166.8,4166.7,0.98268]
[1759286406186,1.17828,4166.8,4166.7,0.5508]
[1759286406988,1.17829,4166.6,4166.5,0.227]
[1759286407187,0.7464,4166.4,4166.3,0.227]
[1759286407392,0.7464,4166.4,4166.0,0.6816]
[1759286407393,0.4281,4166.1,4166.0,0.6816]
[1759286407591,1.17834,4166.1,4166.0,0.5508]
[1759286407892,0.86007,4165.9,4165.8,0.5508]
[1759286408097,1.17837,4165.9,4165.8,0.5508]
[1759286408298,1.17837,4165.9,4165.6,0.00302143]
[1759286408299,1.17838,4165.7,4165.6,0.00302143]
[1759286410396,6.17838,4165.7,4165.6,0.00302143]
[1759286410887,0.7464,4164.9,4164.8,0.3238]
[1759286411290,0.7464,4164.9,4164.8,0.5508]
[1759286411291,1.17847,4164.9,4164.8,0.5508]
[1759286411490,1.1785,4164.6,4164.5,0.5508]
[1759286411697,1.1785,4164.6,4164.5,0.7688]
[1759286411889,1.18035537,4164.6,4164.5,0.7715728]
[1759286412092,1.18035537,4164.6,4164.5,0.0027728]
[1759286416398,1.18035537,4164.6,4164.5,0.3265728]
[1759286416599,0.74825537,4164.6,4164.5,0.7715728]
[1759286416798,0.98925537,4164.6,4164.5,0.7715728]
[1759286417001,0.98925537,4164.6,4164.5,0.0027728]
[1759286418805,0.98925537,4164.6,4164.5,0.5421728]
[1759286419301,0.98925537,4164.6,4164.5,0.7509728]
[1759286419696,0.74825537,4164.6,4164.5,0.7509728]
[1759286419898,0.98925537,4164.6,4164.5,0.7509728]
[1759286422100,0.98925537,4164.6,4164.5,0.3151728]
[1759286422404,0.98925537,4164.6,4164.5,0.0027728]
[1759286426904,1.42135537,4164.6,4164.5,0.0027728]
[1759286429412,1.42135537,4164.6,4164.5,0.5559728]
[1759286429806,1.10305537,4164.6,4164.5,0.9136728]
[1759286430012,1.43515537,4164.6,4164.5,0.7837728]
[1759286431108,1.43515537,4164.6,4164.5,1.2158828]
[1759286431507,0.00185537,4164.6,4164.5,2.20730942]
[1759286431712,0.00185537,4164.6,4164.5,7.20730942]
[1759286434010,0.00185537,4164.6,4164.5,2.20730942]
[1759286434412,0.00185537,4164.6,4164.5,7.20730942]
[1759286439211,0.7744,4165.6,4165.5,1.213]
[1759286440010,0.7744,4165.6,4165.5,0.781]
[1759286440209,0.43202,4165.3,4165.2,0.86152662]
[1759286440406,0.4423,4165.1,4165.0,0.43205]
[1759286440610,0.43206,4164.9,4164.5,0.64953644]
[1759286440814,0.7744,4164.6,4164.5,0.9880728]
[1759286445218,0.7744,4164.6,4164.5,0.0027728]
[1759286445420,0.7744,4164.6,4164.5,0.5559728]
[1759286446120,0.7744,4164.6,4164.5,0.0027728]
[1759286447116,1.2065,4164.6,4164.5,0.0027728]
[1759286449524,1.4475,4164.6,4164.5,0.0027728]
[1759286449927,2.30902662,4164.6,4164.5,0.0027728]
[1759286452829,2.31002662,4164.6,4164.5,0.0027728]
[1759286454319,0.43216,4164.0,4163.9,0.3331]
[1759286454524,1.56236,4164.0,4163.9,0.3331]
[1759286455429,1.56236,4164.0,4163.9,0.33550484]
[1759286456432,1.56236,4164.0,4163.9,0.56010484]
[1759286457731,1.56236,4164.0,4163.9,0.00240484]
[1759286459331,1.18866,4164.0,4163.9,1.21887484]
[1759286459532,0.67416,4164.0,4163.9,0.78670484]
[1759286459736,0.88886,4164.0,4163.9,1.64823146]
[1759286460333,1.43066,4164.0,4163.9,0.78670484]
[1759286462037,1.43066,4164.0,4163.9,1.21887484]
[1759286462338,1.43066,4164.0,4163.9,0.78670484]
[1759286463539,1.43066,4164.0,4163.9,1.21887484]
[1759286464438,1.43066,4164.0,4163.9,0.78670484]
[1759286464736,1.43066,4164.0,4163.9,1.21887484]
[1759286465142,1.43066,4164.0,4163.9,0.78670484]
[1759286466643,0.43215,4164.1,4164.0,1.01486]
[1759286466839,0.88885,4164.1,4164.0,0.9158]
[1759286467037,1.20205,4164.1,4164.0,0.9158]
[1759286467239,1.43065,4164.1,4164.0,0.9158]
[1759286467833,1.18865,4164.1,4164.0,0.7843]
[1759286468038,1.43065,4164.1,4164.0,0.7843]
[1759286468830,1.43065,4164.1,4164.0,1.21646]
[1759286469030,1.43065,4164.1,4164.0,1.34796]
[1759286469436,0.9985,4164.1,4164.0,1.34796]
[1759286469640,1.43065,4164.1,4164.0,1.34796]
[1759286470040,1.18865,4164.1,4164.0,1.34796]
[1759286470238,0.3132,4164.4,4164.3,0.43213]
[1759286470437,0.4567,4164.4,4164.3,2.07795662]
[1759286470639,0.4567,4164.4,4164.3,1.64582662]
[1759286470640,0.88882,4164.4,4164.3,1.64582662]
[1759286470936,1.20202,4164.4,4164.3,1.64582662]
[1759286471139,0.88882,4164.4,4164.3,2.07795662]
[1759286472241,0.4567,4164.4,4164.3,2.07795662]
[1759286472544,0.88882,4164.4,4164.3,2.07795662]
[1759286473242,0.2147,4164.4,4164.3,2.07795662]
[1759286473542,0.43211,4164.5,4164.4,1.21642]
[1759286473742,0.88881,4164.5,4164.4,1.21642]
[1759286473944,1.20201,4164.5,4164.4,1.21642]
[1759286474333,0.4567,4164.5,4164.4,1.21642]
[1759286474642,1.20201,4164.5,4164.4,1.21642]
[1759286476238,1.20201,4164.5,4164.4,0.7843]
[1759286476239,1.43061,4164.5,4164.4,0.7843]
[1759286479743,1.18861,4164.5,4164.4,1.21642]
[1759286479940,2.14804655,4165.7,4164.9,0.3254]
[1759286479941,1.08005,4165.4,4164.9,0.3254]
[1759286480152,0.67403,4165.2,4165.1,1.61252662]
[1759286480445,1.45533,4165.2,4165.1,0.751]
[1759286480738,1.45533,4165.2,4165.1,0.533]
[1759286484847,1.45533,4165.2,4165.1,0.751]
[1759286485543,0.7813,4165.2,4165.1,0.751]
[1759286485750,0.43203,4165.3,4165.2,1.21153]
[1759286485948,0.6605,4165.5,4165.4,1.21151]
[1759286486148,0.9015,4165.5,4165.4,0.7795]
[1759286486350,1.2235,4165.5,4165.4,0.7795]
[1759286486554,1.451,4165.5,4165.4,0.7795]
[1759286487935,0.778,4165.5,4165.4,0.7795]
[1759286488151,0.4695,4165.5,4165.4,1.21151]
[1759286488751,0.9015,4165.5,4165.4,0.7795]
[1759286488941,1.2235,4165.5,4165.4,1.21151]
[1759286494957,1.451,4165.5,4165.4,0.7795]
[1759286495153,1.451,4165.5,4165.4,0.5604]
[1759286496454,1.5819,4165.5,4165.4,0.5604]
[1759286498358,1.5819,4165.5,4165.4,0.99241]
[1759286499157,1.5819,4165.5,4165.4,0.5604]
[1759286500956,0.43207,4164.9,4164.6,0.99658288]
[1759286501162,1.019,4164.8,4164.7,0.99248]
[1759286501464,1.019,4164.8,4164.7,1.21158]
[1759286502166,1.45107,4164.8,4164.7,1.21158]
[1759286502352,1.45107,4164.8,4164.7,0.5604]
[1759286502559,1.21011,4164.5,4164.4,0.99251]
[1759286502755,0.88813,4164.3,4164.2,0.5604]
[1759286502955,1.21013,4164.3,4164.2,0.5604]
[1759286503164,0.778,4164.3,4164.2,0.5604]
[1759286503366,0.778,4164.3,4164.2,0.7795]
[1759286504858,0.322,4164.6,4164.2,0.7795]
[1759286505064,40.8,4164.8,4164.6,0.3378]
[1759286505263,1.21093,4165.5,4164.8,1.21157]
[1759286505264,0.66056,4164.9,4164.8,1.21157]
[1759286505468,1.22356,4164.9,4164.8,1.21157]
[1759286506064,0.98256,4164.9,4164.8,1.21157]
[1759286506264,1.22356,4164.9,4164.8,1.21157]
[1759286507173,1.45106,4164.9,4164.8,1.21157]
[1759286507674,1.45106,4164.9,4164.8,0.7795]
[1759286508672,1.21006,4164.9,4164.8,0.7795]
[1759286508974,1.45106,4164.9,4164.8,0.7795]
[1759286510474,1.2101,4164.6,4164.5,0.4321]
[1759286511171,1.2101,4164.6,4164.5,0.7699]
[1759286511573,0.56301,4164.5,4164.4,0.76992]
[1759286511876,1.58201,4164.5,4164.4,0.99252]
[1759286512075,1.1499,4164.5,4164.4,0.99252]
[1759286512673,1.019,4164.5,4164.4,0.99252]
[1759286513178,1.57691,4164.5,4164.4,0.64812]
[1759286513370,1.57691,4164.5,4164.4,0.97702]
[1759286517669,1.57691,4164.5,4164.4,0.5449]
[1759286519283,1.57691,4164.5,4164.4,0.97702]
[1759286520672,1.45111,4164.5,4164.4,0.97702]
[1759286520878,1.45111,4164.5,4164.4,1.18642]
[1759286523276,0.1309,4165.0,4164.7,0.85748]
[1759286523277,0.5497,4164.8,4164.7,0.85748]
[1759286523476,0.7907,4164.8,4164.7,1.18638]
[1759286523675,1.22278,4164.8,4164.7,1.18638]
[1759286524082,1.44888,4164.8,4164.7,1.18638]
[1759286525078,1.44888,4164.8,4164.7,0.7543]
[1759286525279,1.44888,4164.8,4164.7,0.3289]
[1759286525785,1.20788,4164.7,4164.6,0.977]
[1759286526689,0.7758,4164.7,4164.6,1.1864]
[1759286526888,1.0168,4164.7,4164.6,1.1864]
[1759286528388,1.44888,4164.7,4164.6,1.1864]
[1759286530193,1.0168,4164.7,4164.6,1.1864]
[1759286530887,1.20788,4164.7,4164.6,1.1864]
[1759286531192,0.4504,4164.7,4164.6,1.1864]
[1759286531692,0.7907,4164.7,4164.6,1.1864]
[1759286532583,1.44888,4164.7,4164.6,1.1864]
[1759286537695,1.44888,4164.7,4164.6,0.7543]
[1759286538992,1.44888,4164.7,4164.6,1.1864]
[1759286545393,1.0168,4164.7,4164.6,1.1864]
[1759286548302,0.4355,4164.7,4164.6,1.1864]
[1759286548495,0.6765,4164.7,4164.6,2.047793]
[1759286548802,1.0042,4164.7,4164.6,1.1864]
[1759286549303,0.7667,4164.5,4164.4,0.97241]
[1759286549803,1.19881,4164.5,4164.4,0.5403]
[1759286550003,0.7667,4164.2,4164.0,1.40033956]
[1759286550210,1.43985,4164.1,4164.0,0.322]
[1759286550405,0.87116,4164.0,4163.9,0.32440484]
[1759286550599,1.19886,4164.0,4163.9,0.32440484]
[1759286550793,1.19886,4164.0,4163.9,0.00240484]
[1759286550794,1.33066,4164.0,4163.9,0.00240484]
[1759286551699,42.13066,4164.0,4163.9,0.00240484]
[1759286554405,42.992053,4164.0,4163.9,0.00240484]
[1759286563208,42.992053,4164.0,4163.9,4.84e-06]
[1759286567412,43.233053,4164.0,4163.9,0.32200484]
[1759286567604,42.905353,4164.0,4163.9,4.84e-06]
[1759286570019,41.91216,4164.0,4163.9,0.76560484]
[1759286570211,42.905353,4164.0,4163.9,0.54030484]
[1759286570410,42.905353,4164.0,4163.9,4.84e-06]
[1759286573721,42.905353,4164.0,4163.9,0.56430484]
[1759286573905,43.247053,4164.0,4163.9,0.56430484]
[1759286574724,43.247053,4164.0,4163.9,4.84e-06]
[1759286577216,42.905353,4164.0,4163.9,4.84e-06]
[1759286578322,41.80296,4164.0,4163.9,4.84e-06]
[1759286578518,42.04396,4164.0,4163.9,4.84e-06]
[1759286586824,41.80296,4164.0,4163.9,0.78010484]
[1759286587128,41.91216,4164.0,4163.9,0.78010484]
[1759286587325,41.91216,4164.0,4163.9,0.56430484]
[1759286587326,42.38076,4164.0,4163.9,0.56430484]
[1759286587524,42.03906,4164.0,4163.9,4.84e-06]
[1759286590230,1.23906,4164.0,4163.9,4.84e-06]
[1759286590723,42.03906,4164.0,4163.9,4.84e-06]
[1759286604235,43.03640418,4164.0,4163.9,4.84e-06]
[1759286608230,43.07822268,4164.0,4163.9,4.84e-06]
[1759286616344,44.79827926,4164.0,4163.9,4.84e-06]
[1759286617140,44.7983995,4164.0,4163.9,4.84e-06]
[1759286617541,43.07822268,4164.0,4163.9,4.84e-06]
[1759286619248,44.79833145,4164.0,4163.9,4.84e-06]
[1759286619943,44.55733145,4164.0,4163.9,4.84e-06]
[1759286620147,44.79833145,4164.0,4163.9,4.84e-06]
[1759286624251,43.07822268,4164.0,4163.9,4.84e-06]
[1759286628849,42.83722268,4164.0,4163.9,4.84e-06]
[1759286629048,44.55765978,4164.0,4163.9,4.84e-06]
[1759286629251,44.79865978,4164.0,4163.9,4.84e-06]
[1759286630248,43.07822268,4164.0,4163.9,4.84e-06]
[1759286630449,41.79806,4164.0,4163.9,4.84e-06]
[1759286630654,43.75992579,4164.0,4163.9,4.84e-06]
[1759286630960,43.03640418,4164.0,4163.9,4.84e-06]
[1759286633259,44.75726997,4164.0,4163.9,4.84e-06]
[1759286633861,44.51626997,4164.0,4163.9,4.84e-06]
[1759286634062,44.75726997,4164.0,4163.9,4.84e-06]
[1759286640065,43.03640418,4164.0,4163.9,4.84e-06]
[1759286640967,44.75726997,4164.0,4163.9,4.84e-06]
[1759286641358,43.03640418,4164.0,4163.9,4.84e-06]
[1759286642665,42.79540418,4164.0,4163.9,4.84e-06]
[1759286642866,43.03640418,4164.0,4163.9,4.84e-06]
[1759286646260,44.75726997,4164.0,4163.9,4.84e-06]
[1759286652266,43.03640418,4164.0,4163.9,4.84e-06]
[1759286656759,42.03906,4164.0,4163.9,4.84e-06]
[1759286656970,43.03640418,4164.0,4163.9,4.84e-06]
[1759286659067,42.03906,4164.0,4163.9,4.84e-06]
[1759286664370,42.90103904,4164.0,4163.9,4.84e-06]
[1759286665070,44.66304235,4164.0,4163.9,4.84e-06]
[1759286665273,42.94285624,4164.0,4163.9,4.84e-06]
[1759286666274,43.80483528,4164.0,4163.9,4.84e-06]
[1759286666474,42.94285624,4164.0,4163.9,4.84e-06]
[1759286675687,48.80483528,4164.0,4163.9,4.84e-06]
[1759286675986,58.98483528,4164.0,4163.9,4.84e-06]
[1759286677484,62.1183596,4164.0,4163.9,4.84e-06]
[1759286679486,57.1183596,4164.0,4163.9,4.84e-06]
[1759286679782,62.1183596,4164.0,4163.9,4.84e-06]
[1759286679975,0.63856,4163.0,4162.9,6.84e-06]
[1759286680181,2.08943904,4163.0,4162.9,6.84e-06]
[1759286680387,2.41483904,4163.0,4162.9,6.84e-06]
[1759286680585,43.21483904,4163.0,4162.9,6.84e-06]
[1759286680985,43.21483904,4163.0,4162.9,0.00232957]
[1759286681187,1.18663,4162.3,4162.2,0.7503]
[1759286681485,1.42763,4162.3,4162.2,0.7503]
[1759286682081,1.42973621,4162.3,4162.2,0.7531056]
[1759286682279,1.42973621,4162.3,4162.2,0.0028056]
[1759286683681,1.42973621,4162.3,4162.2,0.3275056]
[1759286684195,1.42973621,4162.3,4162.2,0.5429056]
[1759286686489,1.42973621,4162.3,4162.2,0.7531056]
[1759286687090,1.42973621,4162.3,4162.2,0.5429056]
[1759286689894,1.18873621,4162.3,4162.2,0.5429056]
[1759286690095,1.42973621,4162.3,4162.2,0.5429056]
[1759286690895,1.42973621,4162.3,4162.2,0.3275056]
[1759286691096,1.42973621,4162.3,4162.2,0.0028056]
[1759286694099,1.18873621,4162.3,4162.2,0.0028056]
[1759286694397,1.42973621,4162.3,4162.2,0.0028056]
[1759286694806,1.42973621,4162.3,4162.2,0.3208056]
[1759286695303,1.42973621,4162.3,4162.2,0.0028056]
[1759286699101,2.29171525,4162.3,4162.2,0.0028056]
[1759286700602,2.05071525,4162.3,4162.2,0.7622056]
[1759286700804,2.29171525,4162.3,4162.2,0.7622056]
[1759286701409,2.29171525,4162.3,4162.2,0.0028056]
[1759286702001,1.18873621,4162.3,4162.2,0.0028056]
[1759286702210,2.29171525,4162.3,4162.2,0.0028056]
[1759286704909,2.29171525,4162.3,4162.2,0.5487056]
[1759286705109,2.29171525,4162.3,4162.2,0.0028056]
[1759286712117,2.29171525,4162.3,4162.2,0.3208056]
[1759286713015,2.29171525,4162.3,4162.2,0.0028056]
[1759286716514,0.87971,4161.6,4161.5,1.3306602]
[1759286716814,2.32138904,4161.6,4161.5,0.5459]
[1759286717014,1.21844,4161.3,4161.2,0.5459]
[1759286717218,1.45944,4161.3,4161.2,0.5459]
[1759286717521,1.45944,4161.3,4161.2,0.54856289]
[1759286720820,1.45944,4161.3,4161.2,0.76206289]
[1759286722017,1.45944,4161.3,4161.2,0.00266289]
[1759286722220,2.32141904,4161.3,4161.2,0.00266289]
[1759286722407,1.45944,4161.3,4161.2,0.00266289]
[1759286722607,2.32141904,4161.3,4161.2,0.00266289]
[1759286723613,43.12141904,4161.3,4161.2,0.00266289]
[1759286724618,41.92074,4161.3,4161.2,1.17031289]
[1759286724816,41.2473,4161.3,4161.2,1.17031289]
[1759286725013,0.43243,4161.4,4161.3,1.16763]
[1759286725318,0.89873,4161.4,4161.3,0.7352]
[1759286725915,1.21373,4161.4,4161.3,0.7352]
[1759286726214,1.21373,4161.4,4161.3,1.16764]
[1759286726410,0.2253,4161.4,4161.3,1.16764]
[1759286726615,0.2253,4161.6,4161.5,0.1237]
[1759286726814,0.4663,4161.6,4161.5,0.5399]
[1759286727126,1.21371,4161.6,4161.5,0.5399]
[1759286727418,1.43101,4161.6,4161.5,0.8589]
[1759286728524,1.43101,4161.6,4161.5,0.7352]
[1759286730626,1.19001,4161.6,4161.5,0.7352]
[1759286730930,1.43101,4161.6,4161.5,0.7352]
[1759286731318,1.43101,4161.6,4161.5,0.319]
[1759286731519,1.19003,4161.3,4161.2,0.00266289]
[1759286731720,2.42934859,4161.3,4161.2,0.00266289]
[1759286732729,2.42934859,4161.3,4159.8,0.5278]
[1759286732730,1.19018,4159.9,4159.8,0.5278]
[1759286732931,0.87521,4159.6,4159.5,0.319]
[1759286733123,0.7576,4159.2,4159.1,0.7352]
[1759286733325,0.7576,4159.2,4158.5,0.1237]
[1759286733326,0.7576,4158.6,4158.5,0.7352]
[1759286733623,0.7576,4158.6,4158.5,0.86144033]
[1759286733624,1.00250143,4158.6,4158.5,0.86144033]
[1759286733821,0.7576,4158.0,4157.9,0.75925089]
[1759286734026,0.315,4158.4,4157.9,0.75925089]
[1759286734219,0.76050143,4158.6,4158.5,0.5278]
[1759286734428,41.76650143,4158.6,4158.5,0.5278]
[1759286734825,1.32498,4158.0,4157.9,0.55185089]
[1759286735031,1.0016,4158.0,4157.9,0.55455961]
[1759286735233,1.0016,4158.0,4157.9,0.02675961]
[1759286735234,0.8922,4158.0,4157.9,0.02675961]
[1759286735420,1.1362,4158.0,4157.9,0.02675961]
[1759286735823,0.315,4156.8,4156.3,0.319]
[1759286736024,0.7576,4156.8,4156.7,0.7352]
[1759286736221,0.315,4156.7,4155.5,0.1237]
[1759286736430,1.75591859,4156.7,4156.6,0.5278]
[1759286736733,1.75591859,4156.7,4156.6,0.00285242]
[1759286736933,1.19058,4156.1,4156.0,0.5278]
[1759286737230,0.4496,4156.0,4154.6,0.43313]
[1759286737435,0.4496,4156.0,4155.3,0.7352]
[1759286737436,1.75591859,4155.4,4155.3,0.7352]
[1759286737729,0.4426,4155.4,4155.3,0.7352]
[1759286737932,0.24873888,4155.4,4155.3,0.7382265]
[1759286738138,0.7576,4156.6,4155.6,0.319]
[1759286738327,0.315,4156.8,4156.3,0.7352]
[1759286738528,0.4426,4156.9,4156.8,0.7352]
[1759286738925,0.4426,4156.9,4156.5,0.1237]
[1759286738926,0.87545,4157.4,4157.3,0.7352]
[1759286739126,1.12460672,4157.4,4157.3,0.7352]
[1759286739434,1.43960672,4157.4,4157.0,0.1237]
[1759286739632,0.4426,4157.2,4157.1,0.5278]
[1759286739835,0.00215672,4157.4,4157.3,0.4162]
[1759286740137,0.00215672,4157.4,4157.3,0.7352]
[1759286740330,0.22745672,4157.4,4157.3,0.7352]
[1759286743030,0.00215672,4157.4,4157.3,0.7352]
[1759286743332,0.00215672,4157.4,4157.3,5.7352]
[1759286743735,38.60566,4159.2,4157.3,5.7352]
[1759286743736,0.65804,4158.4,4158.3,0.7352]
[1759286744030,0.2253,4158.4,4158.3,0.7352]
[1759286744337,0.4723,4158.4,4158.3,0.7352]
[1759286744737,0.00263395,4158.4,4158.3,0.73703877]
[1759286745031,0.22793395,4158.4,4158.3,0.73703877]
[1759286745627,1.75855254,4158.4,4158.3,0.73703877]
[1759286745832,1.75855254,4158.4,4158.3,0.52963877]
[1759286746834,0.76023395,4158.4,4158.3,0.52963877]
[1759286747441,0.76023395,4158.4,4158.3,0.73703877]
[1759286748433,0.76023395,4158.4,4158.3,0.00183877]
[1759286748434,1.75855254,4158.4,4158.3,0.00183877]
[1759286751231,1.75855254,4158.4,4156.3,0.2088]
[1759286751232,0.43296,4156.4,4156.3,0.2088]
[1759286751536,1.43656,4156.4,4156.3,0.5278]
[1759286752039,1.43656,4156.4,4156.3,0.7352]
[1759286752342,1.43656,4156.4,4156.3,0.73783932]
[1759286752543,1.0036,4156.4,4156.3,0.73783932]
[1759286752841,0.315,4157.1,4156.5,0.8589]
[1759286753039,0.64966,4157.3,4157.2,0.4444]
[1759286753243,1.07056,4157.3,4157.2,0.7812]
[1759286753439,1.07056,4157.3,4156.5,0.1237]
[1759286753440,41.3082,4157.3,4156.5,0.1237]
[1759286753642,0.8726,4157.0,4156.9,0.2251]
[1759286753837,1.1828,4157.0,4156.9,0.5619]
[1759286754038,1.4298,4157.0,4156.9,0.7812]
[1759286754639,0.4638,4157.0,4156.9,0.7812]
[1759286754840,0.247,4157.0,4156.9,0.7812]
[1759286755141,0.64967,4157.2,4157.1,0.7812]
[1759286755341,0.247,4157.2,4157.1,0.4444]
[1759286755539,41.047,4157.3,4157.2,0.3368]
[1759286755737,41.047,4157.3,4157.2,0.7812]
[1759286755942,0.4638,4157.3,4157.2,0.7812]
[1759286756846,0.2168,4157.3,4157.2,0.7812]
[1759286757138,0.9969,4157.3,4157.2,0.7812]
[1759286757344,0.43291,4156.8,4156.6,0.3368]
[1759286757540,0.2168,4156.7,4156.6,0.7812]
[1759286758134,0.4397,4156.7,4156.6,0.7812]
[1759286758340,0.7499,4156.7,4156.6,0.7812]
[1759286758538,0.2168,4156.7,4156.6,0.7812]
[1759286759045,0.4638,4156.9,4156.8,0.7812]
[1759286759248,0.247,4156.9,4156.8,0.7812]
[1759286759742,0.4638,4156.9,4156.8,0.7812]
[1759286759945,0.6867,4156.9,4156.8,0.7812]
[1759286760145,0.99831859,4157.3,4156.5,1.12201859]
[1759286760146,0.43286,4157.3,4156.5,1.12201859]
[1759286760338,0.4638,4157.2,4157.1,0.7812]
[1759286760842,0.2168,4157.2,4157.1,0.7812]